bitfinex/quotes_ETHUSD_20240810
["timestamp","ask_amount","ask_price","bid_price","bid_amount"]
[1723311586628,1.32678927,2608.7,2608.3,2.891625]
[1723311586827,3.0746,2608.8,2608.3,2.891625]
[1723311587028,1.32678965,2608.7,2608.3,2.891625]
[1723311587238,3.0746,2608.8,2608.3,2.891625]
[1723311587537,1.32679932,2608.7,2608.3,2.891625]
[1723311587714,3.0746,2608.8,2608.3,2.891625]
[1723311587919,1.32679092,2608.7,2608.3,2.891625]
[1723311588123,3.0746,2608.8,2608.3,2.891625]
[1723311588343,1.3267871,2608.7,2608.3,2.891625]
[1723311588538,3.0746,2608.8,2608.3,2.891625]
[1723311588743,1.32678231,2608.7,2608.3,2.891625]
[1723311589043,3.0746,2608.8,2608.3,2.891625]
[1723311589207,1.32678318,2608.7,2608.3,2.891625]
[1723311589407,3.0746,2608.8,2608.3,2.891625]
[1723311589602,1.326782,2608.7,2608.3,2.891625]
[1723311589825,3.0746,2608.8,2608.3,2.891625]
[1723311590014,1.32678211,2608.7,2608.3,2.891625]
[1723311590206,3.0746,2608.8,2608.3,2.891625]
[1723311590415,1.32678579,2608.7,2608.3,2.891625]
[1723311590618,3.0746,2608.8,2608.3,2.891625]
[1723311590842,1.32678086,2608.7,2608.3,4.808565]
[1723311591046,1.32678086,2608.7,2608.4,2.8897565]
[1723311591347,3.07447,2609.0,2608.4,2.8897565]
[1723311591348,3.0,2608.9,2608.4,2.8897565]
[1723311591514,1.32670192,2608.8,2608.4,2.8897565]
[1723311591849,3.0,2608.9,2608.4,2.8897565]
[1723311592058,3.0,2608.9,2608.5,0.54181215]
[1723311592352,3.0,2608.9,2608.4,2.8897565]
[1723311592353,1.32669543,2608.8,2608.4,2.8897565]
[1723311592551,3.0,2608.9,2608.4,2.4089]
[1723311592724,1.32670683,2608.8,2608.4,4.32576]
[1723311593045,3.0,2608.9,2608.4,4.32576]
[1723311593212,1.32673621,2608.8,2608.4,4.32576]
[1723311593415,3.07445527,2608.9,2608.4,4.32576]
[1723311593919,1.32673544,2608.8,2608.4,4.32576]
[1723311594118,3.07445527,2608.9,2608.4,4.32576]
[1723311594318,1.32673573,2608.8,2608.4,4.32576]
[1723311594518,3.07445527,2608.9,2608.4,4.32576]
[1723311594730,1.32673518,2608.8,2608.4,4.32576]
[1723311594939,3.07445527,2608.9,2608.4,4.32576]
[1723311595145,1.32673539,2608.8,2608.4,4.32576]
[1723311595347,3.07445527,2608.9,2608.4,4.32576]
[1723311595645,1.32672432,2608.8,2608.4,4.32576]
[1723311595848,3.07445527,2608.9,2608.4,4.32576]
[1723311596151,1.32674504,2608.8,2608.4,4.32576]
[1723311596311,3.07445527,2608.9,2608.4,4.32576]
[1723311596511,1.32672423,2608.8,2608.4,4.32576]
[1723311596710,3.07445527,2608.9,2608.4,4.32576]
[1723311596933,1.32674523,2608.8,2608.4,4.32576]
[1723311597211,1.32674523,2608.7,2608.4,4.32576]
[1723311597411,1.32674523,2608.8,2608.4,4.32576]
[1723311599559,3.07445527,2608.9,2608.4,4.32576]
[1723311599766,1.32675568,2608.7,2608.4,4.32576]
[1723311599928,3.07445527,2608.9,2608.4,4.32576]
[1723311600251,1.32675325,2608.8,2608.4,2.4089]
[1723311600458,3.31790852,2608.7,2608.4,2.4089]
[1723311600662,1.32681366,2608.6,2608.4,2.4089]
[1723311600870,1.99110527,2608.8,2608.4,2.4089]
[1723311601162,1.40126466,2608.7,2608.4,2.4089]
[1723311601312,0.07445527,2608.7,2608.4,2.4089]
[1723311601509,1.32682735,2608.6,2608.4,2.4089]
[1723311601759,1.99110527,2608.8,2608.4,2.4089]
[1723311602109,1.32683601,2608.7,2608.4,2.4089]
[1723311602313,1.32682374,2608.6,2608.4,2.4089]
[1723311602514,1.99110527,2608.8,2608.4,2.4089]
[1723311602751,1.32682363,2608.7,2608.4,2.4089]
[1723311602953,1.32682363,2608.6,2608.4,2.4089]
[1723311603160,1.99110527,2608.8,2608.4,2.4089]
[1723311603362,1.32681837,2608.7,2608.4,2.4089]
[1723311603563,0.07445527,2608.8,2608.4,2.4089]
[1723311603771,1.3267949,2608.7,2608.4,2.4089]
[1723311604078,0.07445527,2608.8,2608.4,2.4089]
[1723311604245,1.32679059,2608.7,2608.4,2.4089]
[1723311604577,1.32681794,2608.6,2608.4,2.4089]
[1723311604778,1.99104527,2608.8,2608.4,2.4089]
[1723311605078,1.32681807,2608.7,2608.4,2.4089]
[1723311605437,1.32681807,2608.6,2608.4,2.4089]
[1723311605871,1.99104527,2608.8,2608.4,2.4089]
[1723311606036,1.3268214,2608.7,2608.4,2.4089]
[1723311606379,1.3268214,2608.6,2608.4,2.4089]
[1723311606546,1.99104527,2608.8,2608.4,2.4089]
[1723311606751,1.32682129,2608.7,2608.4,2.4089]
[1723311606969,1.32682129,2608.6,2608.4,2.4089]
[1723311607147,1.32682129,2608.7,2608.4,2.4089]
[1723311607983,1.91694,2608.4,2607.9,2.4089]
[1723311608271,3.31823656,2608.3,2607.9,2.4089]
[1723311608436,1.32682129,2608.2,2607.9,2.4089]
[1723311609497,1.91717,2608.0,2607.2,1.91772]
[1723311609781,1.23245527,2608.2,2607.6,2.4091]
[1723311609782,2.32342893,2608.1,2607.6,2.4091]
[1723311609948,1.99160527,2608.1,2607.6,2.4091]
[1723311610277,1.32716988,2608.0,2607.6,2.4091]
[1723311610484,1.99160527,2608.1,2607.6,2.4091]
[1723311610643,1.91718,2608.0,2607.6,2.4091]
[1723311612583,0.07445527,2608.1,2607.6,2.4091]
[1723311612891,0.07445527,2608.1,2607.6,4.75919]
[1723311613840,0.07445527,2608.1,2607.7,2.4091]
[1723311621078,1.91722,2608.0,2607.7,2.4091]
[1723311621507,0.07445527,2608.1,2607.7,2.4091]
[1723311621995,1.99156527,2608.1,2607.7,2.4091]
[1723311624410,0.07445527,2608.1,2607.7,2.4091]
[1723311624563,0.07445527,2608.1,2607.7,2.841752]
[1723311626686,3.60085964,2608.3,2607.7,2.841752]
[1723311626687,3.60085964,2608.3,2607.8,4.32641]
[1723311626884,3.67531491,2608.3,2607.9,2.4091]
[1723311628678,3.60085964,2608.3,2608.0,1.91715]
[1723311628875,7.3,2608.4,2608.1,2.600815]
[1723311629313,7.3,2608.4,2608.2,2.2629]
[1723311629519,7.3,2608.4,2608.2,4.17992]
[1723311629825,7.3,2608.4,2608.3,2.2629]
[1723311629989,7.3,2608.4,2608.3,4.17985]
[1723311630191,0.60078045,2608.7,2608.4,4.17972]
[1723311630402,0.60078045,2608.7,2608.5,2.2629]
[1723311630785,0.60078045,2608.7,2608.5,4.1797]
[1723311631406,0.60078045,2608.7,2608.5,4.66132259]
[1723311632184,0.60078045,2608.7,2608.5,2.74452259]
[1723311632505,0.60078045,2608.7,2608.5,2.2629]
[1723311635339,4.23245527,2608.9,2608.5,2.2629]
[1723311635487,4.158,2608.9,2608.5,2.2629]
[1723311636712,4.158,2608.9,2608.5,4.1797]
[1723311636919,3.0,2608.9,2608.6,2.2629]
[1723311637135,3.0,2608.9,2608.5,1.9168]
[1723311637136,3.0,2609.0,2608.8,2.2629]
[1723311641121,4.158,2609.1,2608.8,2.2629]
[1723311645005,4.23245527,2609.1,2608.8,2.2629]
[1723311646898,6.14882527,2609.1,2608.8,2.2629]
[1723311647098,7.1469718,2609.1,2608.8,2.2629]
[1723311647342,7.1469718,2609.1,2608.2,2.2629]
[1723311647343,1.91651,2608.9,2608.2,2.2629]
[1723311647512,2.18276627,2608.8,2608.2,2.2629]
[1723311647717,0.07445527,2608.8,2608.3,2.2629]
[1723311650537,0.07445527,2608.8,2608.3,4.17984]
[1723311652203,0.07445527,2609.0,2608.5,1.9168]
[1723311652442,1.9570208,2609.0,2608.6,2.4922]
[1723311652647,4.9570208,2609.0,2608.6,2.4922]
[1723311653638,6.8734708,2609.0,2608.6,2.4922]
[1723311655350,1.32674769,2608.9,2608.6,2.4922]
[1723311655550,3.0,2608.9,2608.6,2.4922]
[1723311657247,1.32675872,2608.8,2608.6,2.4922]
[1723311657544,3.0,2608.9,2608.6,2.4922]
[1723311657739,1.32674836,2608.8,2608.6,2.4922]
[1723311657928,3.0,2608.9,2608.6,2.4922]
[1723311658129,1.32676255,2608.8,2608.6,2.4922]
[1723311658325,3.0,2608.9,2608.6,2.4922]
[1723311658539,1.32676244,2608.8,2608.6,2.4922]
[1723311658739,3.0,2608.9,2608.6,2.4922]
[1723311658943,1.32676244,2608.8,2608.6,2.4922]
[1723311659150,3.0,2608.9,2608.6,2.4922]
[1723311659380,4.23245527,2609.0,2608.6,2.4922]
[1723311659659,1.32674995,2608.9,2608.6,2.4922]
[1723311659862,1.32674995,2608.8,2608.6,2.4922]
[1723311660159,1.32674995,2608.7,2608.6,2.4922]
[1723311660355,1.32674995,2608.9,2608.6,2.4922]
[1723311660556,1.32674995,2608.8,2608.6,2.4922]
[1723311660761,1.32674995,2608.7,2608.6,2.4922]
[1723311661059,1.32674995,2608.9,2608.6,2.4922]
[1723311661217,1.32674995,2608.7,2608.6,2.4922]
[1723311662056,1.32675021,2608.7,2608.6,2.4922]
[1723311662262,1.32675021,2608.9,2608.6,2.4922]
[1723311662556,1.32675021,2608.8,2608.6,2.4922]
[1723311662744,1.32675021,2608.9,2608.6,2.4922]
[1723311663553,1.32676217,2608.8,2608.6,2.4922]
[1723311663730,1.32676217,2608.7,2608.6,2.4922]
[1723311663918,1.32676217,2608.9,2608.6,2.4922]
[1723311664123,1.40121744,2608.9,2608.6,2.4922]
[1723311664324,1.32676217,2608.8,2608.6,2.4922]
[1723311664657,1.32676217,2608.7,2608.6,2.4922]
[1723311665727,1.32674733,2608.7,2608.6,2.4922]
[1723311666255,1.32676057,2608.7,2608.6,2.4922]
[1723311667662,1.32674748,2608.7,2608.6,2.4922]
[1723311669443,1.32675863,2608.7,2608.6,2.4922]
[1723311671562,1.32675863,2608.7,2608.3,1.9169]
[1723311671765,1.32679013,2608.6,2608.3,2.3844]
[1723311671980,0.07445527,2608.7,2608.3,2.3844]
[1723311672159,1.32681515,2608.6,2608.3,2.3844]
[1723311672353,0.07445527,2608.7,2608.3,2.3844]
[1723311672682,1.32684535,2608.6,2608.3,2.3844]
[1723311672850,0.07445527,2608.7,2608.3,2.3844]
[1723311673047,1.32684386,2608.6,2608.3,2.3844]
[1723311673269,0.07445527,2608.7,2608.3,2.3844]
[1723311673471,1.32683012,2608.6,2608.2,1.91702]
[1723311673671,1.99112527,2608.7,2608.1,2.3844]
[1723311673672,3.0,2608.9,2608.5,4.30115]
[1723311673859,1.32673348,2608.8,2608.5,4.30115]
[1723311674068,1.32673348,2608.7,2608.6,2.3844]
[1723311674676,1.32672478,2608.7,2608.6,2.3844]
[1723311674890,1.32672478,2608.7,2608.6,3.006202]
[1723311676390,3.07445527,2609.0,2608.6,3.006202]
[1723311676593,4.3267405,2608.9,2608.6,2.3844]
[1723311676891,3.0,2608.9,2608.6,2.3844]
[1723311677056,1.32674037,2608.8,2608.6,2.3844]
[1723311677255,1.32674037,2608.7,2608.6,2.3844]
[1723311677452,1.32674037,2608.7,2608.6,3.006202]
[1723311678293,1.32673068,2608.7,2608.6,3.006202]
[1723311680156,1.3267308,2608.7,2608.6,3.006202]
[1723311683704,1.32673883,2608.7,2608.6,3.006202]
[1723311683909,1.32673883,2608.7,2608.6,2.3844]
[1723311685594,1.32673883,2608.7,2608.2,2.3844]
[1723311685797,1.91658,2608.9,2608.2,4.30138]
[1723311685798,1.4011941,2608.6,2608.2,4.30138]
[1723311686020,0.07445527,2608.6,2608.2,4.30138]
[1723311686400,0.07445527,2608.6,2608.2,6.21836]
[1723311686802,0.07445527,2608.7,2608.2,4.30138]
[1723311687000,1.32681502,2608.6,2608.2,4.30138]
[1723311687412,0.07445527,2608.7,2608.2,4.30138]
[1723311687611,1.32681478,2608.6,2608.2,4.30138]
[1723311687817,0.07445527,2608.7,2608.2,6.21836]
[1723311688145,0.07445527,2608.7,2608.2,4.30138]
[1723311688298,1.32679076,2608.6,2608.2,6.21741863]
[1723311688498,0.07445527,2608.7,2608.2,6.21741863]
[1723311688831,1.32681488,2608.6,2608.2,4.30043863]
[1723311689031,0.07445527,2608.7,2608.2,4.30043863]
[1723311689241,1.32681486,2608.6,2608.2,4.30043863]
[1723311689450,0.07445527,2608.7,2608.2,4.30043863]
[1723311689635,1.91682,2608.5,2607.8,1.9173]
[1723311689954,1.91682,2608.5,2607.8,1.91726]
[1723311689955,4.47619013,2608.4,2607.8,1.91726]
[1723311690155,1.917,2608.3,2607.7,7.35]
[1723311690336,4.47634013,2608.2,2607.4,3.07557]
[1723311690659,1.32681486,2608.1,2607.4,3.07557]
[1723311690958,1.32681486,2608.1,2607.6,1.91745]
[1723311691268,1.32681486,2608.1,2606.6,1.39000377]
[1723311691269,1.158,2607.8,2607.3,2.4822]
[1723311691568,0.07445527,2607.7,2607.2,1.91772]
[1723311691860,4.158,2607.9,2607.3,1.99438406]
[1723311692061,1.32732866,2607.8,2607.4,4.39977]
[1723311692272,3.0,2607.9,2607.4,4.39977]
[1723311692459,4.99163527,2608.0,2607.4,4.39977]
[1723311692820,0.61496353,2607.9,2607.4,4.39977]
[1723311693026,3.61496353,2607.9,2607.4,4.39977]
[1723311693239,3.6894188,2607.9,2607.4,4.39977]
[1723311694477,3.61496353,2607.9,2607.4,4.39977]
[1723311694673,3.61496353,2607.9,2607.5,1.91753]
[1723311695045,0.61496353,2607.9,2607.5,1.91753]
[1723311695244,3.0,2607.8,2607.5,1.91753]
[1723311695567,0.61496353,2607.9,2607.5,1.91753]
[1723311702043,3.61496353,2607.9,2607.5,1.91753]
[1723311706867,0.61496353,2607.9,2607.5,1.91753]
[1723311707599,3.07445527,2608.1,2607.8,1.9173]
[1723311707801,0.07445527,2608.1,2607.7,1.91733]
[1723311708039,0.60089437,2608.3,2608.0,1.91715]
[1723311708216,8.458,2608.7,2608.1,4.39928]
[1723311708386,3.030074,2608.6,2608.1,4.39928]
[1723311708787,3.030074,2608.6,2608.1,2.4822]
[1723311709188,0.07445527,2608.5,2608.1,2.4822]
[1723311709390,3.0,2608.5,2608.1,2.4822]
[1723311709687,4.4488074,2608.5,2608.1,2.4822]
[1723311713439,3.0,2608.5,2608.1,6.3163]
[1723311713658,3.07445527,2608.6,2608.2,1.91701]
[1723311713953,3.07445527,2608.6,2608.1,4.39925]
[1723311714943,3.07445527,2608.6,2608.1,2.4822]
[1723311715243,1.15324553,2608.5,2608.1,2.4822]
[1723311717636,2.31124553,2608.5,2608.1,2.4822]
[1723311717844,4.158,2608.5,2608.1,2.4822]
[1723311720895,3.0,2608.5,2608.1,2.4822]
[1723311721694,3.07445527,2608.5,2608.1,2.4822]
[1723311722367,3.0,2608.5,2608.1,2.4822]
[1723311722691,4.91676,2608.6,2608.1,2.4822]
[1723311722851,0.607476,2608.5,2608.1,2.4822]
[1723311723063,3.607476,2608.5,2608.1,2.4822]
[1723311724968,3.0,2608.5,2608.3,1.91694]
[1723311725279,9.05879334,2608.8,2608.3,1.91694]
[1723311725280,0.60079334,2608.8,2608.4,2.4067]
[1723311725476,0.60079334,2608.8,2608.4,2.48336759]
[1723311725783,0.60079334,2608.8,2608.4,2.4067]
[1723311726468,3.60079334,2608.8,2608.4,4.32357]
[1723311728006,3.67524861,2608.8,2608.4,2.4067]
[1723311728202,4.23442647,2608.8,2608.4,2.4067]
[1723311731110,0.07445527,2608.7,2608.4,2.4067]
[1723311731407,1.4012766,2608.7,2608.2,2.3866]
[1723311731775,0.07445527,2608.7,2608.2,2.3866]
[1723311731975,0.07445527,2608.7,2608.2,4.30362]
[1723311733808,0.60079334,2608.8,2608.4,1.158]
[1723311734008,3.0,2609.0,2608.2,0.73787]
[1723311734009,3.0,2609.0,2608.7,2.3866]
[1723311734472,3.60066424,2609.1,2608.7,2.3866]
[1723311734674,1.32670732,2609.0,2608.7,2.3866]
[1723311735012,3.60066424,2609.1,2608.7,2.3866]
[1723311735185,1.32670664,2609.0,2608.7,2.3866]
[1723311735381,5.59153951,2609.1,2608.7,2.3866]
[1723311735586,1.32672027,2609.0,2608.7,2.3866]
[1723311735787,6.38367219,2609.1,2608.7,2.3866]
[1723311736011,1.32672003,2609.0,2608.7,2.3866]
[1723311736170,6.38367219,2609.1,2608.7,2.3866]
[1723311736374,1.32672008,2609.0,2608.7,2.3866]
[1723311736607,6.38367219,2609.1,2608.7,2.3866]
[1723311736905,1.32672004,2609.0,2608.7,2.3866]
[1723311737109,6.38367219,2609.1,2608.7,2.3866]
[1723311737406,1.3267202,2609.0,2608.7,2.3866]
[1723311737582,1.3267202,2608.9,2608.7,2.3866]
[1723311737787,6.38367219,2609.1,2608.7,2.3866]
[1723311737988,1.3267198,2609.0,2608.7,2.3866]
[1723311738210,1.3267198,2608.9,2608.7,2.3866]
[1723311738530,6.38367219,2609.1,2608.7,2.3866]
[1723311738711,1.32672009,2609.0,2608.7,2.3866]
[1723311738910,1.32672009,2608.9,2608.7,2.3866]
[1723311739123,6.38367219,2609.1,2608.7,2.3866]
[1723311739329,1.32670845,2609.0,2608.7,2.3866]
[1723311739641,3.67511951,2609.1,2608.7,2.3866]
[1723311739798,1.32670786,2609.0,2608.7,2.3866]
[1723311740127,3.67511951,2609.1,2608.7,2.3866]
[1723311740432,1.32670624,2609.0,2608.7,2.3866]
[1723311740807,1.32670624,2608.9,2608.5,2.3866]
[1723311741008,1.158,2608.7,2607.9,1.158]
[1723311741225,1.40116151,2608.6,2607.9,1.158]
[1723311741394,3.55943142,2608.6,2607.9,1.158]
[1723311741598,0.55943142,2608.6,2607.9,1.158]
[1723311742539,0.55943142,2608.6,2608.2,2.3866]
[1723311744034,2.47617142,2608.6,2608.1,1.91705]
[1723311744235,1.99031421,2608.5,2608.1,1.91705]
[1723311744532,2.65470241,2608.5,2608.0,2.3866]
[1723311746733,0.07445527,2608.5,2608.1,1.91706]
[1723311747833,3.07445527,2608.7,2608.2,1.91702]
[1723311748132,3.0,2608.7,2608.4,4.30347]
[1723311748332,3.0,2608.8,2608.4,4.30347]
[1723311748534,1.32680129,2608.7,2608.4,4.30347]
[1723311748716,3.0,2608.8,2608.4,5.12563856]
[1723311750610,3.0,2608.8,2608.4,4.38013388]
[1723311750811,0.07445527,2608.7,2608.2,2.3666]
[1723311751111,1.32685211,2608.6,2608.1,1.91706]
[1723311751306,1.99116527,2608.7,2608.1,1.91706]
[1723311751506,3.24362156,2608.6,2608.1,1.91706]
[1723311751705,1.40134683,2608.5,2608.1,1.91706]
[1723311751910,0.07445527,2608.5,2608.1,1.91706]
[1723311752741,3.0,2608.6,2608.3,1.91688]
[1723311752939,3.0,2608.7,2608.5,1.9168]
[1723311753143,7.3,2608.9,2608.5,1.99346677]
[1723311753345,7.3,2608.9,2608.6,2.3666]
[1723311753843,7.3,2608.9,2607.6,9.26742]
[1723311753844,0.07445527,2608.8,2608.3,2.3666]
[1723311754410,1.32677066,2608.7,2608.3,2.3666]
[1723311754849,8.09006642,2608.9,2608.3,4.2835]
[1723311755048,1.32679292,2608.8,2608.3,4.2835]
[1723311755356,8.09006642,2608.9,2608.3,4.2835]
[1723311755357,1.32679278,2608.7,2608.3,4.2835]
[1723311755515,1.22582364,2608.8,2608.3,4.2835]
[1723311755715,1.32679517,2608.7,2608.3,4.2835]
[1723311755914,1.22582364,2608.8,2608.3,4.2835]
[1723311756822,1.32679981,2608.7,2608.3,4.2835]
[1723311757031,10.00657642,2608.9,2608.3,4.2835]
[1723311757230,1.32679229,2608.8,2608.3,4.2835]
[1723311757425,10.00657642,2608.9,2608.3,4.2835]
[1723311758253,10.00657642,2608.9,2608.3,6.20041]
[1723311758749,1.3267966,2608.8,2608.3,6.20041]
[1723311759114,10.00657642,2608.9,2608.3,4.2835]
[1723311760453,1.32677373,2608.8,2608.3,4.2835]
[1723311761224,1.32677373,2608.8,2608.3,6.20041]
[1723311761423,1.32677373,2608.8,2608.3,4.2835]
[1723311762243,1.32677373,2608.8,2608.3,6.20041]
[1723311762450,1.32677373,2608.8,2608.7,2.3666]
[1723311762619,1.32677373,2608.8,2608.7,4.28326]
[1723311762823,7.3,2608.9,2608.7,4.28326]
[1723311763023,3.60066424,2609.1,2608.7,4.28326]
[1723311763693,7.3,2609.7,2609.1,1.91632]
[1723311763965,7.3,2609.7,2609.2,2.3666]
[1723311764150,7.3,2609.7,2609.2,4.28289]
[1723311765156,4.32634276,2609.6,2609.2,4.28289]
[1723311766649,3.0,2609.6,2609.2,4.28289]
[1723311769386,3.0,2609.6,2609.3,1.91621]
[1723311769586,3.0,2609.6,2609.2,4.3595311]
[1723311770087,3.0,2609.6,2609.2,6.2757811]
[1723311770372,3.0,2609.6,2609.2,4.3594911]
[1723311770536,3.0,2609.6,2609.2,6.2757311]
[1723311770947,3.0,2609.6,2609.2,4.3594811]
[1723311771150,3.0,2609.6,2609.2,4.28284]
[1723311772347,8.70319527,2609.6,2608.9,2.362]
[1723311772536,1.91619,2609.4,2608.9,2.362]
[1723311772741,1.99064527,2609.4,2608.9,2.362]
[1723311773474,1.99064527,2609.4,2608.9,4.2785]
[1723311773671,1.91619,2609.4,2608.9,4.2785]
[1723311774446,0.07445527,2609.5,2609.0,1.91642]
[1723311776653,0.07445527,2609.5,2608.9,2.362]
[1723311776847,1.91631,2609.2,2608.6,4.27871]
[1723311777061,0.07445527,2609.1,2608.6,4.27871]
[1723311777271,0.07445527,2609.1,2608.5,2.362]
[1723311777582,1.99087527,2609.1,2608.5,2.362]
[1723311779988,1.91631,2609.2,2608.7,1.91666]
[1723311780185,3.0,2609.3,2608.8,1.91657]
[1723311781277,3.0,2609.3,2608.9,1.91644]
[1723311781471,3.0,2609.3,2609.0,1.91643]
[1723311781673,7.3,2609.4,2609.1,4.27832]
[1723311781861,7.3,2609.4,2609.1,4.35496604]
[1723311782260,7.3,2609.4,2609.1,4.27832]
[1723311782485,7.3,2609.4,2609.2,1.91626]
[1723311782686,3.0,2609.6,2609.2,3.83249]
[1723311783055,0.07445527,2609.8,2609.2,3.83249]
[1723311783253,0.07445527,2609.8,2609.3,1.91621]
[1723311784367,0.07445527,2609.8,2609.4,1.91614]
[1723311784572,0.07445527,2609.8,2609.4,4.27814]
[1723311788695,1.3263288,2609.7,2609.4,4.27814]
[1723311788865,3.07445527,2609.8,2609.4,4.27814]
[1723311789065,4.32630393,2609.7,2609.4,4.27814]
[1723311789319,0.07445527,2609.8,2609.4,2.362]
[1723311789462,1.32635656,2609.7,2609.4,2.362]
[1723311789663,3.07445527,2609.8,2609.4,2.362]
[1723311789920,1.32633039,2609.7,2609.4,2.362]
[1723311790216,3.07445527,2609.8,2609.4,2.362]
[1723311790365,1.32633013,2609.7,2609.4,2.362]
[1723311790567,3.07445527,2609.8,2609.4,2.362]
[1723311790761,1.32631021,2609.7,2609.4,2.362]
[1723311790961,3.07445527,2609.8,2609.4,2.362]
[1723311791161,3.0,2609.7,2609.4,2.362]
[1723311791392,3.0,2609.7,2609.1,2.2712]
[1723311791393,3.31685807,2609.6,2609.1,2.2712]
[1723311791585,2.7894798,2609.7,2609.1,2.2712]
[1723311791809,4.32635586,2609.6,2609.1,2.2712]
[1723311792193,3.0,2609.6,2609.1,2.2712]
[1723311792394,1.99045527,2609.7,2609.1,2.2712]
[1723311792395,4.99045527,2609.7,2609.1,2.2712]
[1723311792710,1.32632556,2609.6,2609.1,2.2712]
[1723311792864,4.32632556,2609.6,2609.2,1.91624]
[1723311793064,3.0,2609.6,2609.2,1.91624]
[1723311793283,4.99032527,2609.8,2609.2,1.91624]
[1723311793492,1.32633882,2609.7,2609.2,1.91624]
[1723311793696,1.32633882,2609.6,2609.2,1.91624]
[1723311793908,3.0,2609.6,2609.2,1.91624]
[1723311794260,1.32638605,2609.5,2609.2,1.91624]
[1723311794466,3.0,2609.6,2609.2,1.91624]
[1723311794801,2.6810148,2609.7,2609.2,1.91624]
[1723311795095,4.32635263,2609.6,2609.2,1.91624]
[1723311795304,3.0,2609.6,2609.2,1.91624]
[1723311797703,1.32639615,2609.5,2609.2,1.91624]
[1723311797900,3.0,2609.6,2609.2,1.91624]
[1723311798478,1.32637988,2609.5,2609.2,1.91624]
[1723311798663,3.0,2609.6,2609.2,1.91624]
[1723311799596,1.32638046,2609.5,2609.2,1.91624]
[1723311799900,3.0,2609.6,2609.2,1.91624]
[1723311800279,1.32636067,2609.5,2609.2,1.91624]
[1723311800481,3.0,2609.6,2609.2,1.91624]
[1723311800690,1.32638732,2609.5,2609.2,1.91624]
[1723311800872,3.0,2609.6,2609.2,1.91624]
[1723311801069,1.32638363,2609.5,2609.3,2.2712]
[1723311801293,3.0,2609.6,2609.3,2.2712]
[1723311801676,4.99039527,2609.7,2609.3,2.2712]
[1723311801985,1.32632457,2609.6,2609.3,2.2712]
[1723311802172,3.0,2609.6,2609.3,2.2712]
[1723311802371,0.07445527,2609.7,2609.3,2.2712]
[1723311802591,3.0,2609.8,2609.3,0.49538699]
[1723311802773,1.3262744,2609.7,2609.5,2.2712]
[1723311802973,3.0,2609.9,2609.5,2.2712]
[1723311803382,3.0,2609.9,2609.6,2.2712]
[1723311803585,3.60054373,2610.0,2609.6,2.2712]
[1723311803781,1.32616049,2609.9,2609.6,4.18718]
[1723311803982,3.0,2610.0,2609.6,4.92077034]
[1723311804185,7.3,2610.1,2609.6,4.18718]
[1723311804383,7.3,2610.1,2609.7,2.2712]
[1723311805296,1.32611951,2610.0,2609.7,2.2712]
[1723311805504,3.0,2610.0,2609.7,2.2712]
[1723311806326,0.60039507,2610.4,2609.7,2.77420869]
[1723311806479,1.32606609,2610.3,2610.0,2.2712]
[1723311806676,0.60039507,2610.4,2610.0,2.34782028]
[1723311807105,1.98982527,2610.5,2610.0,2.34782028]
[1723311807315,1.32592775,2610.4,2610.0,2.34782028]
[1723311807612,3.0,2610.4,2610.0,2.34782028]
[1723311807810,1.98982527,2610.5,2610.0,2.34782028]
[1723311808381,1.32593144,2610.4,2610.0,2.34782028]
[1723311808678,1.91554,2610.3,2610.0,2.2712]
[1723311809009,1.91563,2610.1,2609.6,2.2712]
[1723311810075,0.07445527,2610.2,2609.6,2.2712]
[1723311810076,0.07445527,2610.0,2609.6,2.2712]
[1723311810273,1.91598,2609.7,2609.3,2.4154]
[1723311810478,0.07445527,2609.7,2609.3,2.4154]
[1723311811012,1.91588,2609.8,2609.3,2.4154]
[1723311811013,1.99033527,2609.8,2609.3,2.4154]
[1723311811216,0.07445527,2609.7,2609.3,2.4154]
[1723311812919,3.0,2609.9,2609.4,1.9927235]
[1723311813217,4.99019527,2610.0,2609.4,1.9927235]
[1723311813421,1.99019527,2610.0,2609.4,1.9927235]
[1723311814814,1.99019527,2610.0,2609.4,1.91608]
[1723311815024,1.32621721,2609.9,2609.4,1.91608]
[1723311815227,3.0,2609.9,2609.4,1.91608]
[1723311815434,3.07445527,2609.9,2609.4,1.91608]
[1723311816020,0.07445527,2609.9,2609.4,1.91608]
[1723311816225,0.07445527,2609.9,2609.5,2.4154]
[1723311816597,1.99019527,2610.0,2609.5,2.4154]
[1723311816808,3.07445527,2610.1,2609.5,4.33143]
[1723311817014,1.32615388,2610.0,2609.5,4.33143]
[1723311817220,3.07445527,2610.1,2609.5,4.33143]
[1723311817494,1.32617873,2610.0,2609.5,4.33143]
[1723311817835,4.99010527,2610.1,2609.5,5.02490654]
[1723311818043,1.32615967,2610.0,2609.5,5.02490654]
[1723311818199,3.07445527,2610.1,2609.6,1.91599]
[1723311818535,0.07445527,2610.1,2609.7,2.4154]
[1723311818687,3.0,2610.0,2609.7,2.4154]
[1723311819088,0.07445527,2610.1,2609.7,2.4154]
[1723311819533,3.0,2610.2,2609.7,4.33127]
[1723311819836,3.0,2610.2,2609.8,1.91581]
[1723311820245,3.0,2610.2,2609.9,2.4154]
[1723311820937,3.0,2610.2,2609.9,4.33118]
[1723311821289,3.0,2610.2,2609.9,2.4154]
[1723311822299,3.0,2610.2,2609.9,4.33117]
[1723311822502,3.07445527,2610.5,2609.9,5.02604119]
[1723311822807,3.0,2610.4,2610.0,4.3311]
[1723311823012,4.9153,2610.6,2610.0,4.3311]
[1723311823190,1.3259376,2610.5,2610.0,4.3311]
[1723311823388,3.0,2610.5,2610.0,5.0329401]
[1723311823807,4.9153,2610.6,2610.0,5.0329401]
[1723311824033,1.40038302,2610.5,2610.0,4.3311]
[1723311824341,0.07445527,2610.5,2610.0,4.3311]
[1723311825207,0.07445527,2610.5,2610.1,2.4154]